bitfinex-derivatives/quotes_BTCF0:USTF0_20250729
["timestamp","ask_amount","ask_price","bid_price","bid_amount"]
[1753752341318,1.9204562,118310.0,118300.0,0.4109076]
[1753752341518,1.9204562,118310.0,118300.0,0.3825176]
[1753752342518,1.9204562,118310.0,118300.0,0.4099176]
[1753752344528,1.9204562,118310.0,118300.0,0.4531176]
[1753752346630,1.9204562,118310.0,118300.0,0.2406501]
[1753752347028,1.9204562,118310.0,118300.0,0.4531176]
[1753752351533,1.7514075,118310.0,118300.0,0.4531176]
[1753752351828,1.7078285,118310.0,118300.0,0.7327551]
[1753752358232,1.7078287,118310.0,118300.0,0.7327551]
[1753752358435,0.6888,118310.0,118300.0,0.6922351]
[1753752358639,0.58101,118310.0,118300.0,0.9452226]
[1753752359437,0.12273,118310.0,118300.0,0.9452226]
[1753752359632,0.12273,118310.0,118300.0,0.7327551]
[1753752359839,0.12273,118310.0,118300.0,1.69737558]
[1753752360136,0.78236,118320.0,118310.0,0.3070787]
[1753752360327,0.03169,118320.0,118310.0,0.7320137]
[1753752360531,0.03169,118320.0,118310.0,0.83847096]
[1753752361027,0.96101587,118330.0,118320.0,0.3070642]
[1753752361232,1.00101587,118330.0,118320.0,0.80739489]
[1753752361933,1.00101587,118330.0,118320.0,0.7319992]
[1753752362941,0.32445587,118330.0,118320.0,0.7319992]
[1753752363640,0.32545587,118330.0,118320.0,0.7319992]
[1753752364042,0.32745587,118330.0,118320.0,0.7319992]
[1753752372749,0.32745587,118330.0,118320.0,1.4084792]
[1753752375152,0.32179587,118330.0,118320.0,1.4084792]
[1753752377552,0.28153587,118330.0,118320.0,1.4084792]
[1753752379755,0.28153587,118330.0,118320.0,1.48387489]
[1753752382052,0.28153587,118330.0,118320.0,1.69634239]
[1753752382857,0.27953587,118330.0,118320.0,1.69634239]
[1753752383157,0.27853587,118330.0,118320.0,1.69634239]
[1753752383551,0.04,118330.0,118320.0,1.69634239]
[1753752384258,0.15496275,118340.0,118330.0,0.16902]
[1753752384555,0.38930275,118340.0,118330.0,0.727535]
[1753752385855,0.39130275,118340.0,118330.0,0.727535]
[1753752386357,0.39130275,118340.0,118330.0,0.80293069]
[1753752386955,0.39230275,118340.0,118330.0,0.727535]
[1753752390652,0.39230275,118340.0,118330.0,0.593955]
[1753752390859,0.56130835,118340.0,118330.0,1.0578075]
[1753752391056,0.77377585,118340.0,118330.0,1.0990775]
[1753752392561,0.56130835,118340.0,118330.0,0.4488575]
[1753752392762,0.77377585,118340.0,118330.0,0.4749075]
[1753752394053,0.77377585,118340.0,118330.0,0.5150675]
[1753752394463,0.56130835,118340.0,118330.0,0.5150675]
[1753752394664,0.77377585,118340.0,118330.0,0.5150675]
[1753752396265,0.56130835,118340.0,118330.0,0.5150675]
[1753752397465,0.77377585,118340.0,118330.0,0.5150675]
[1753752397861,0.56130835,118340.0,118330.0,0.5150675]
[1753752398065,0.77377585,118340.0,118330.0,0.5150675]
[1753752398568,0.77377585,118340.0,118330.0,0.3026]
[1753752398870,0.77377585,118340.0,118330.0,0.5150675]
[1753752399062,0.56130835,118340.0,118330.0,0.5150675]
[1753752399463,0.77377585,118340.0,118330.0,0.5150675]
[1753752400673,0.56130835,118340.0,118330.0,0.5150675]
[1753752401072,0.39230275,118340.0,118330.0,0.5150675]
[1753752401271,0.56130915,118340.0,118330.0,0.59046319]
[1753752402070,0.56130915,118340.0,118330.0,0.5150675]
[1753752403871,0.56130915,118340.0,118330.0,0.59046319]
[1753752405873,0.56130915,118340.0,118330.0,0.37799569]
[1753752406072,0.56130915,118340.0,118330.0,0.59046319]
[1753752408073,0.56130915,118340.0,118330.0,0.5150675]
[1753752409168,0.56130915,118340.0,118330.0,0.59046319]
[1753752409572,0.56130915,118340.0,118330.0,0.5150675]
[1753752411772,0.56130915,118340.0,118330.0,0.59046319]
[1753752416177,0.56130915,118340.0,118330.0,0.45688319]
[1753752416474,0.56130915,118340.0,118330.0,0.58986319]
[1753752417178,0.56130915,118340.0,118330.0,0.80233069]
[1753752417477,0.56130915,118340.0,118330.0,0.58986319]
[1753752420573,0.56130915,118340.0,118330.0,0.5144675]
[1753752421180,0.52104915,118340.0,118330.0,0.5144675]
[1753752421376,0.39032275,118340.0,118330.0,0.726935]
[1753752422080,0.39032275,118340.0,118330.0,0.74599291]
[1753752426187,0.55932915,118340.0,118330.0,0.74599291]
[1753752426376,0.55932915,118340.0,118330.0,0.53352541]
[1753752426888,0.55932915,118340.0,118330.0,0.59370333]
[1753752427187,0.55932915,118340.0,118330.0,0.53352541]
[1753752429085,0.77179665,118340.0,118330.0,0.57465771]
[1753752429280,0.55932915,118340.0,118330.0,0.57465771]
[1753752431184,0.55932915,118340.0,118330.0,0.5144675]
[1753752432489,0.77179665,118340.0,118330.0,0.5144675]
[1753752433988,0.77179665,118340.0,118330.0,0.302]
[1753752434189,0.77179665,118340.0,118330.0,0.37739569]
[1753752434589,0.77179665,118340.0,118330.0,0.58986319]
[1753752434990,0.55932915,118340.0,118330.0,0.6084131]
[1753752435190,0.77179665,118340.0,118330.0,0.6084131]
[1753752435791,0.55932915,118340.0,118330.0,0.6084131]
[1753752436892,0.55932915,118340.0,118330.0,0.66858673]
[1753752437095,0.55932915,118340.0,118330.0,0.59319104]
[1753752442492,0.39032275,118340.0,118330.0,0.59319104]
[1753752442691,0.55932905,118340.0,118330.0,0.59319104]
[1753752444596,0.39032275,118340.0,118330.0,0.59319104]
[1753752446992,0.39032275,118340.0,118330.0,0.6084131]
[1753752447199,0.55932905,118340.0,118330.0,0.6084131]
[1753752451893,0.55932905,118340.0,118330.0,0.53301741]
[1753752452397,0.39032275,118340.0,118330.0,0.74548491]
[1753752452597,0.39032275,118340.0,118330.0,0.8208806]
[1753752452796,0.39032275,118340.0,118330.0,0.6084131]
[1753752453196,0.39032275,118340.0,118330.0,0.8208806]
[1753752454597,0.39032275,118340.0,118330.0,0.6084131]
[1753752455900,0.39032275,118340.0,118330.0,0.74548491]
[1753752457102,0.39032275,118340.0,118330.0,0.8208806]
[1753752461001,0.39032275,118340.0,118330.0,0.3959456]
[1753752461201,0.39032275,118340.0,118330.0,0.6084131]
[1753752462305,0.55932915,118340.0,118330.0,0.6084131]
[1753752463603,0.55932915,118340.0,118330.0,0.53301741]
[1753752468404,0.55932915,118340.0,118330.0,0.302]
[1753752468605,0.55932915,118340.0,118330.0,0.5144675]
[1753752473710,0.55932915,118340.0,118330.0,0.58986319]
[1753752476910,0.55932915,118340.0,118330.0,0.65002839]
[1753752477211,0.55932915,118340.0,118330.0,0.5746327]
[1753752482914,0.77179665,118340.0,118330.0,0.5746327]
[1753752483114,0.77179665,118340.0,118330.0,0.3621652]
[1753752483417,0.77179665,118340.0,118330.0,0.5746327]
[1753752484216,0.55932915,118340.0,118330.0,0.5746327]
[1753752484419,0.77179665,118340.0,118330.0,0.5746327]
[1753752486915,0.77179665,118340.0,118330.0,0.58986319]
[1753752487720,1.44875665,118340.0,118330.0,0.58986319]
[1753752490624,1.44843665,118340.0,118330.0,0.58986319]
[1753752492220,1.44843665,118340.0,118330.0,0.5144675]
[1753752493326,0.77179665,118340.0,118330.0,0.302]
[1753752493518,1.44835665,118340.0,118330.0,0.5144675]
[1753752493826,1.44835665,118340.0,118330.0,0.5898087]
[1753752494126,1.44835665,118340.0,118330.0,0.5144675]
[1753752495131,1.44835665,118340.0,118330.0,0.58981675]
[1753752496225,0.77179665,118340.0,118330.0,0.58981675]
[1753752496428,1.45011665,118340.0,118330.0,0.58981675]
[1753752497828,1.45011665,118340.0,118330.0,0.37734925]
[1753752498026,1.45011665,118340.0,118330.0,0.58981675]
[1753752499128,0.77179665,118340.0,118330.0,0.58981675]
[1753752499326,1.44987665,118340.0,118330.0,0.58981675]
[1753752500127,1.23740915,118340.0,118330.0,0.58981675]
[1753752500327,1.44987665,118340.0,118330.0,0.58981675]
[1753752502028,0.77179665,118340.0,118330.0,0.58981675]
[1753752502327,1.44967665,118340.0,118330.0,0.58981675]
[1753752504533,1.44967665,118340.0,118330.0,0.5144675]
[1753752505021,1.44939665,118340.0,118330.0,0.5144675]
[1753752507731,0.77179665,118340.0,118330.0,0.5144675]
[1753752507931,1.44923665,118340.0,118330.0,0.5144675]
[1753752508434,1.23676915,118340.0,118330.0,0.5144675]
[1753752508639,1.44923665,118340.0,118330.0,0.5144675]
[1753752509746,1.44923665,118340.0,118330.0,0.3814875]
[1753752510240,1.44923665,118340.0,118330.0,0.4059175]
[1753752510635,0.77179665,118340.0,118330.0,0.4420575]
[1753752510831,1.44895665,118340.0,118330.0,0.4673175]
[1753752513040,1.66142415,118340.0,118330.0,0.1690207]
[1753752513247,0.368895,118320.0,118310.0,1.67347021]
[1753752513441,0.59001664,118320.0,118310.0,1.00245155]
[1753752513748,1.26713664,118320.0,118310.0,0.96018945]
[1753752513941,1.26713664,118320.0,118310.0,0.5917537]
[1753752514140,1.26713664,118320.0,118310.0,0.66713766]
[1753752516443,1.05466914,118320.0,118310.0,0.66713766]
[1753752516639,1.26713664,118320.0,118310.0,0.66813766]
[1753752516846,1.05466914,118320.0,118310.0,0.66813766]
[1753752517046,1.26713664,118320.0,118310.0,0.66813766]
[1753752517850,1.26713664,118320.0,118310.0,0.5927537]
[1753752519247,1.26713664,118320.0,118310.0,0.5528437]
[1753752520854,1.47960414,118320.0,118310.0,0.2545462]
[1753752521546,1.47960414,118320.0,118310.0,0.2122841]
[1753752523055,1.48825588,118320.0,118310.0,0.2122841]
[1753752523357,1.47960414,118320.0,118310.0,0.2122841]
[1753752525255,1.97960414,118320.0,118310.0,0.2122841]
[1753752526057,1.98818681,118320.0,118310.0,0.2122841]
[1753752532762,1.97960414,118320.0,118310.0,0.2122841]
[1753752533867,1.76713664,118320.0,118310.0,0.4247516]
[1753752534358,1.97960414,118320.0,118310.0,0.4247516]
[1753752534758,1.97960414,118320.0,118310.0,0.2122841]
[1753752535259,1.97960414,118320.0,118310.0,0.4247516]
[1753752538861,1.97960414,118320.0,118310.0,0.2750341]
[1753752539062,1.97960414,118320.0,118310.0,0.4875016]
[1753752540264,1.76713664,118320.0,118310.0,0.4875016]
[1753752540968,1.97960414,118320.0,118310.0,0.4875016]
[1753752541969,1.76713664,118320.0,118310.0,0.4875016]
[1753752542975,1.76713664,118320.0,118310.0,0.2750341]
[1753752543167,1.76713664,118320.0,118310.0,0.4875016]
[1753752543471,1.97960414,118320.0,118310.0,0.4875016]
[1753752544670,1.97960414,118320.0,118310.0,0.4506416]
[1753752547071,1.97960414,118320.0,118310.0,0.2381741]
[1753752547272,1.97960414,118320.0,118310.0,0.4506416]
[1753752549473,1.97960414,118320.0,118310.0,0.5115716]
[1753752549774,1.97960414,118320.0,118310.0,0.3358641]
[1753752550173,1.97960414,118320.0,118310.0,0.5483316]
[1753752550476,1.97960414,118320.0,118310.0,0.5115716]
[1753752550773,1.55466914,118320.0,118310.0,0.5115716]
[1753752551076,1.76713664,118320.0,118310.0,0.5115716]
[1753752551672,1.97960414,118320.0,118310.0,0.5115716]
[1753752552775,1.97960414,118320.0,118310.0,0.58695556]
[1753752559375,1.30248414,118320.0,118310.0,0.58695556]
[1753752559577,1.97912414,118320.0,118310.0,0.37448806]
[1753752559779,1.76665664,118320.0,118310.0,0.58695556]
[1753752565381,1.09001664,118320.0,118310.0,0.58695556]
[1753752565588,1.76661664,118320.0,118310.0,0.58695556]
[1753752566688,1.76661664,118320.0,118310.0,0.5115716]
[1753752568287,1.09001664,118320.0,118310.0,0.5115716]
[1753752568487,1.76661664,118320.0,118310.0,0.5115716]
[1753752571188,1.30248414,118320.0,118310.0,0.5115716]
[1753752571393,1.97908414,118320.0,118310.0,0.5115716]
[1753752573098,1.97908414,118320.0,118310.0,0.2991041]
[1753752573396,1.97908414,118320.0,118310.0,0.2381741]
[1753752575194,1.97908414,118320.0,118310.0,0.4506416]
[1753752575899,1.97908414,118320.0,118310.0,0.2381741]
[1753752576195,1.97908414,118320.0,118310.0,0.4506416]
[1753752579004,1.97908414,118320.0,118310.0,0.2381741]
[1753752579203,1.97908414,118320.0,118310.0,0.4506416]
[1753752583201,1.30248414,118320.0,118310.0,0.4506416]
[1753752583397,1.55406914,118320.0,118310.0,0.5140416]
[1753752583598,1.76653664,118320.0,118310.0,0.5140416]
[1753752586007,1.76653664,118320.0,118310.0,0.3015741]
[1753752586207,1.76653664,118320.0,118310.0,0.5140416]
[1753752587104,1.76653664,118320.0,118310.0,0.58942556]
[1753752588506,1.97900414,118320.0,118310.0,0.58942556]
[1753752588710,1.97900414,118320.0,118310.0,0.5140416]
[1753752592008,1.97900414,118320.0,118310.0,0.3015741]
[1753752592208,1.97900414,118320.0,118310.0,0.2381741]
[1753752592408,1.55406914,118320.0,118310.0,0.2381741]
[1753752592610,1.97900414,118320.0,118310.0,0.2381741]
[1753752600214,1.76653664,118320.0,118310.0,0.4506416]
[1753752600416,1.76653664,118320.0,118310.0,0.4891316]
[1753752600915,1.97900414,118320.0,118310.0,0.4891316]
[1753752601916,1.76653664,118320.0,118310.0,0.4891316]
[1753752604015,0.87754914,118320.0,118310.0,0.5147016]
[1753752604214,1.76637664,118320.0,118310.0,0.5512016]
[1753752604413,1.05390914,118320.0,118310.0,0.5512016]
[1753752604616,0.37754914,118320.0,118310.0,0.5512016]
[1753752604810,0.97249,118320.0,118310.0,0.5512016]
[1753752605013,1.1415248,118320.0,118310.0,0.5512016]
[1753752606818,1.1415248,118320.0,118310.0,0.62658556]
[1753752613121,0.261,118320.0,118310.0,0.80255306]
[1753752613317,0.93728,118320.0,118310.0,0.7636691]
[1753752613519,0.97358,118320.0,118310.0,0.7636691]
[1753752613817,0.93574,118320.0,118310.0,0.7636691]
[1753752614023,0.97204,118320.0,118310.0,0.7636691]
[1753752614221,0.29576,118320.0,118310.0,0.83905306]
[1753752617225,0.29576,118320.0,118310.0,0.7636691]
[1753752618829,0.6409625,118320.0,118310.0,0.4762116]
[1753752619135,0.464795,118320.0,118310.0,1.2259116]
[1753752620827,0.464795,118320.0,118310.0,0.5496716]
[1753752627129,0.464795,118320.0,118310.0,0.62505556]
[1753752628433,0.464795,118320.0,118310.0,0.5496716]
[1753752628836,0.464795,118320.0,118310.0,0.62500263]
[1753752630236,0.6772625,118320.0,118310.0,0.62500263]
[1753752631738,0.6772625,118320.0,118310.0,0.5496716]
[1753752632340,0.464795,118320.0,118310.0,0.5496716]
[1753752634239,0.464795,118320.0,118310.0,0.65520735]
[1753752634940,0.464795,118320.0,118310.0,0.5496716]
[1753752635341,0.464795,118320.0,118310.0,0.65520735]
[1753752639044,0.29576,118320.0,118310.0,0.65520735]
[1753752641045,0.19775,118320.0,118310.0,0.86767485]
[1753752641338,0.25892275,118340.0,118330.0,0.2907406]
[1753752641529,0.36892275,118340.0,118330.0,0.5032081]
[1753752641733,1.04492275,118340.0,118330.0,0.5032081]
[1753752643246,1.04692275,118340.0,118330.0,0.5032081]
[1753752643546,1.21592905,118340.0,118330.0,0.5032081]
[1753752644842,1.21592905,118340.0,118330.0,0.5786876]
[1753752645047,1.21592905,118340.0,118330.0,0.58698571]
[1753752646048,1.21584905,118340.0,118330.0,0.58698571]
[1753752647348,1.21584905,118340.0,118330.0,0.5786876]
[1753752647551,1.42831655,118340.0,118330.0,0.5786876]
[1753752648051,1.42831655,118340.0,118330.0,0.58717811]
[1753752650547,1.21584905,118340.0,118330.0,0.58717811]
[1753752650748,1.42831655,118340.0,118330.0,0.58717811]
[1753752651252,1.42831655,118340.0,118330.0,0.51169861]
[1753752651847,1.42827655,118340.0,118330.0,0.51169861]
[1753752652448,1.42827655,118340.0,118330.0,0.5032081]
[1753752654653,0.75239655,118340.0,118330.0,0.5032081]
[1753752654855,1.42823655,118340.0,118330.0,0.5032081]
[1753752656253,1.21576905,118340.0,118330.0,0.5032081]
[1753752656456,1.42823655,118340.0,118330.0,0.5032081]
[1753752656959,0.33462275,118340.0,118330.0,0.4297481]
[1753752657151,1.21440905,118340.0,118330.0,0.4987081]
[1753752657657,1.42687655,118340.0,118330.0,0.4987081]
[1753752658258,1.21440905,118340.0,118330.0,0.4987081]
[1753752659559,1.42687655,118340.0,118330.0,0.4987081]
[1753752661462,1.42687655,118340.0,118330.0,0.5741876]
[1753752662762,1.21440905,118340.0,118330.0,0.5741876]
[1753752663061,1.42687655,118340.0,118330.0,0.5741876]
[1753752666964,1.42687655,118340.0,118330.0,0.4987081]
[1753752670672,1.21440905,118340.0,118330.0,0.4987081]
[1753752670873,1.42687655,118340.0,118330.0,0.4987081]
[1753752676878,1.42687655,118340.0,118330.0,0.5741876]
[1753752677675,0.75107655,118340.0,118330.0,0.5741876]
[1753752677877,1.42667655,118340.0,118330.0,0.5741876]
[1753752678180,1.21420905,118340.0,118330.0,0.5741876]
[1753752679272,1.21420905,118340.0,118330.0,0.4987081]
[1753752679579,0.36960275,118340.0,118330.0,0.4987081]
[1753752679786,1.04520275,118340.0,118330.0,0.4984781]
[1753752680579,0.36960275,118340.0,118330.0,0.4984781]
[1753752680781,1.04516275,118340.0,118330.0,0.4984781]
[1753752683181,1.04516275,118340.0,118330.0,0.5739576]
[1753752683481,0.36960275,118340.0,118330.0,0.4984781]
[1753752683682,1.04516275,118340.0,118330.0,0.4984781]
[1753752686583,1.04512275,118340.0,118330.0,0.4984781]
[1753752687984,1.04512275,118340.0,118330.0,0.5739576]
[1753752688986,1.21412905,118340.0,118330.0,0.5739576]
[1753752689875,1.04512275,118340.0,118330.0,0.5739576]
[1753752692078,0.36960275,118340.0,118330.0,0.7864251]
[1753752692278,1.04508275,118340.0,118330.0,0.5739576]
[1753752694985,0.36960275,118340.0,118330.0,0.5739576]
[1753752695185,1.04504275,118340.0,118330.0,0.5739576]
[1753752697880,0.36960275,118340.0,118330.0,0.5739576]
[1753752698186,1.04504275,118340.0,118330.0,0.5739576]
[1753752700886,1.04500275,118340.0,118330.0,0.5739576]
[1753752701287,1.04500275,118340.0,118330.0,0.7864251]
[1753752701684,0.30186,118340.0,118330.0,0.7864251]
[1753752701891,0.97726,118340.0,118330.0,0.7864251]
[1753752706595,0.97722,118340.0,118330.0,0.7864251]
[1753752707091,0.97722,118340.0,118330.0,0.7109456]
[1753752709395,0.30186,118340.0,118330.0,0.7109456]
[1753752709592,0.97722,118340.0,118330.0,0.7109456]
[1753752712290,0.97718,118340.0,118330.0,0.7109456]
[1753752715296,0.97714,118340.0,118330.0,0.7109456]
[1753752716999,0.97714,118340.0,118330.0,0.7864251]
[1753752718096,0.9771,118340.0,118330.0,0.7864251]
[1753752718396,0.9771,118340.0,118330.0,0.7109456]
[1753752718796,0.9771,118340.0,118330.0,0.81648135]
[1753752722796,0.9771,118340.0,118330.0,0.7109456]
[1753752723198,0.9771,118340.0,118330.0,0.81648135]
[1753752723398,0.97715,118340.0,118330.0,0.81648135]
[1753752723703,0.30191,118340.0,118330.0,0.81648135]
[1753752723903,0.97711,118340.0,118330.0,0.81648135]
[1753752726203,0.97711,118340.0,118330.0,0.89209312]
[1753752726404,0.97711,118340.0,118330.0,0.78655737]
[1753752726603,0.30191,118340.0,118330.0,0.78655737]
[1753752726804,0.97707,118340.0,118330.0,0.78655737]
[1753752727907,0.30191,118340.0,118330.0,0.78655737]
[1753752728110,0.97707,118340.0,118330.0,0.78655737]
[1753752728901,0.97707,118340.0,118330.0,0.7109456]
[1753752729210,0.97707,118340.0,118330.0,0.7865484]
[1753752730510,0.30191,118340.0,118330.0,0.7865484]
[1753752730813,0.97707,118340.0,118330.0,0.7865484]
[1753752731405,0.30191,118340.0,118330.0,0.7865484]
[1753752731609,0.97586,118340.0,118330.0,0.7865484]
[1753752731810,0.97586,118340.0,118330.0,0.7109456]
[1753752732410,0.97586,118340.0,118330.0,0.7865587]
[1753752735306,0.30074,118340.0,118330.0,0.7865587]
[1753752736212,0.30074,118340.0,118330.0,0.7109456]
[1753752737314,0.30074,118340.0,118330.0,0.81648135]
[1753752738520,0.30074,118340.0,118330.0,0.7109456]
[1753752738911,0.30074,118340.0,118330.0,0.78654265]
[1753752739705,0.30074,118340.0,118330.0,0.71781265]
[1753752739911,0.6822136,118340.0,118330.0,0.56854515]
[1753752740219,0.6822136,118340.0,118330.0,0.45708515]
[1753752740612,0.4697461,118340.0,118330.0,0.47957515]
[1753752740914,0.4697461,118340.0,118330.0,0.51258515]
[1753752741718,0.4697461,118340.0,118330.0,0.53587515]
[1753752744318,0.4697461,118340.0,118330.0,0.4602781]
[1753752744716,0.4697461,118340.0,118330.0,0.4929481]
[1753752744915,0.30074,118340.0,118330.0,0.4929481]
[1753752745620,0.30074,118340.0,118330.0,0.2804806]
[1753752745813,0.30074,118340.0,118330.0,0.4929481]
[1753752748217,0.30074,118340.0,118330.0,0.56854515]
[1753752749124,0.4697461,118340.0,118330.0,0.56854515]
[1753752749721,0.30074,118340.0,118330.0,0.56854515]
[1753752757222,0.30074,118340.0,118330.0,0.4929481]
[1753752760619,0.469746,118340.0,118330.0,0.4929481]
[1753752763023,0.30074,118340.0,118330.0,0.4929481]
[1753752764827,0.469746,118340.0,118330.0,0.4929481]
[1753752767129,0.469746,118340.0,118330.0,0.56854515]
[1753752768827,0.6822135,118340.0,118330.0,0.56854515]
[1753752769027,1.144426,118340.0,118330.0,0.56854515]
[1753752769931,0.97542,118340.0,118330.0,0.56854515]
[1753752770732,1.144426,118340.0,118330.0,0.35607765]
[1753752770933,1.144426,118340.0,118330.0,0.56854515]
[1753752771132,1.3568935,118340.0,118330.0,0.56854515]
[1753752771830,1.144426,118340.0,118330.0,0.56854515]
[1753752772029,0.97542,118340.0,118330.0,0.56854515]
[1753752780443,0.97542,118340.0,118330.0,0.56854515]
[1753752785449,0.9753,118340.0,118330.0,0.78101265]
[1753752785843,0.9753,118340.0,118330.0,0.56854515]
[1753752786343,0.9753,118340.0,118330.0,0.78101265]
[1753752793950,0.9753,118340.0,118330.0,0.7054156]
[1753752800756,0.9179,118340.0,118330.0,0.7054156]
[1753752800957,0.9179,118340.0,118330.0,1.07385135]
[1753752801155,0.97074,118340.0,118330.0,1.07385135]
[1753752801356,0.97074,118340.0,118330.0,1.04395891]
[1753752802058,0.96974,118340.0,118330.0,1.04395891]
[1753752802359,0.96874,118340.0,118330.0,1.04395891]
[1753752802954,0.83472,118340.0,118330.0,1.01128891]
[1753752803154,0.90506,118340.0,118330.0,1.04396891]
[1753752803356,0.9579,118340.0,118330.0,1.04396891]
[1753752803850,0.9579,118340.0,118330.0,0.9683256]
[1753752804056,0.9579,118340.0,118330.0,1.04396078]
[1753752804562,0.92719,118340.0,118330.0,1.04396078]
[1753752804764,0.9579,118340.0,118330.0,1.04396078]
[1753752804965,0.2835,118340.0,118330.0,1.04396078]
[1753752807163,0.2835,118340.0,118330.0,0.9683256]
[1753752812862,0.2835,118340.0,118330.0,1.04396078]
[1753752816967,0.2835,118340.0,118330.0,1.14949653]
[1753752817166,0.2835,118340.0,118330.0,1.07386135]
[1753752824573,0.2835,118340.0,118330.0,1.32312635]
[1753752824772,0.2835,118340.0,118330.0,1.53559385]
[1753752826673,0.2835,118340.0,118330.0,1.53555385]
[1753752831576,0.452506,118340.0,118330.0,1.4300181]
[1753752833774,0.2835,118340.0,118330.0,1.4300181]
[1753752836672,0.2835,118340.0,118330.0,1.53555385]
[1753752847283,0.2835,118340.0,118330.0,1.50560688]
[1753752850086,0.25279,118340.0,118330.0,1.50560688]
[1753752852084,0.25279,118340.0,118330.0,1.4300181]
[1753752859897,0.25279,118340.0,118330.0,1.53555385]
[1753752860200,0.25279,118340.0,118330.0,1.27265385]
[1753752861601,0.25279,118340.0,118330.0,1.48512135]
[1753752861801,0.25279,118340.0,118330.0,1.27265385]
[1753752862007,0.23066,118340.0,118330.0,1.27265385]
[1753752864306,0.3996659,118340.0,118330.0,1.06018635]
[1753752864506,0.23066,118340.0,118330.0,1.27265385]
[1753752865906,0.23066,118340.0,118330.0,1.53555385]
[1753752875217,0.3996661,118340.0,118330.0,1.53555385]
[1753752875412,0.23066,118340.0,118330.0,1.53555385]
[1753752875612,0.23066,118340.0,118330.0,1.53523385]
[1753752875915,0.23066,118340.0,118330.0,1.4296981]
[1753752880512,0.399666,118340.0,118330.0,1.4296981]
[1753752881110,0.399666,118340.0,118330.0,0.4544106]
[1753752881111,0.5573935,118340.0,118330.0,0.4544106]
[1753752881316,0.874871,118340.0,118330.0,0.52845327]
[1753752881516,0.874871,118340.0,118330.0,0.56105327]
[1753752881711,0.6624035,118340.0,118330.0,0.79412077]
[1753752882016,0.6624035,118340.0,118330.0,0.7184381]
[1753752882215,0.6624035,118340.0,118330.0,0.7489781]
[1753752882715,0.6624035,118340.0,118330.0,0.82466684]
[1753752883613,0.6624035,118340.0,118330.0,0.56176684]
[1753752885319,0.6624035,118340.0,118330.0,0.34929934]
[1753752885523,0.6624035,118340.0,118330.0,0.2736106]
[1753752885720,0.874871,118340.0,118330.0,0.2736106]
[1753752885919,0.874871,118340.0,118330.0,0.1898706]
[1753752887819,0.874871,118340.0,118330.0,0.1690206]
[1753752889718,0.874871,118340.0,118330.0,0.24470934]
[1753752890826,0.3317098,118330.0,118320.0,0.37148004]
[1753752891021,1.3279773,118330.0,118320.0,0.37144136]
[1753752891218,1.3279773,118330.0,118320.0,0.1898441]
[1753752892525,1.8279773,118330.0,118320.0,0.1898441]
[1753752892726,0.2339142,118320.0,118310.0,0.5395654]
[1753752892923,0.8666592,118320.0,118310.0,0.1690485]
[1753752894421,1.3666592,118320.0,118310.0,0.1710485]
[1753752896020,1.3666592,118320.0,118310.0,0.1720485]
[1753752897226,1.3751396,118320.0,118310.0,0.1720485]
[1753752898431,1.3751396,118320.0,118310.0,0.003]
[1753752899125,1.5441796,118320.0,118310.0,0.003]
[1753752899328,0.3317386,118310.0,118300.0,0.2535785]
[1753752899533,1.3380461,118310.0,118300.0,0.211314]
[1753752900933,1.3380461,118310.0,118300.0,0.237124]
[1753752901131,1.3380461,118310.0,118300.0,0.268714]
[1753752901431,1.8380461,118310.0,118300.0,0.268714]
[1753752902732,2.0505136,118310.0,118300.0,0.005]
[1753752903321,0.3317672,118290.0,118280.0,0.2955708]
[1753752903527,1.3381147,118290.0,118280.0,0.3271608]
[1753752904122,1.40647036,118290.0,118280.0,0.5396283]
[1753752904324,1.40647036,118290.0,118280.0,0.3571808]
[1753752904736,1.40647036,118290.0,118280.0,0.3641808]
[1753752905236,1.40647036,118290.0,118280.0,0.5766483]
[1753752905741,1.40647036,118290.0,118280.0,0.3641808]
[1753752906334,1.40647036,118290.0,118280.0,0.3025708]
[1753752906538,1.40647036,118290.0,118280.0,0.3341608]
[1753752906940,1.40647036,118290.0,118280.0,0.3641808]
[1753752910840,1.40647036,118290.0,118280.0,0.5766483]
[1753752912238,1.40647036,118290.0,118280.0,0.3641808]
[1753752912441,1.40647036,118290.0,118280.0,0.5766483]
[1753752916445,1.40647036,118290.0,118280.0,0.3641808]
[1753752916649,1.40647036,118290.0,118280.0,0.57208652]
[1753752916846,1.40647036,118290.0,118280.0,0.32959902]
[1753752917250,1.40647036,118290.0,118280.0,0.27686902]
[1753752917846,1.40647036,118290.0,118280.0,0.30621902]
[1753752918254,1.19400286,118290.0,118280.0,0.32601902]
[1753752918450,1.40647036,118290.0,118280.0,0.32601902]
[1753752918965,1.40647036,118290.0,118280.0,0.35591902]
[1753752919962,1.40647036,118290.0,118280.0,0.56838652]
[1753752920464,1.40647036,118290.0,118280.0,0.35591902]
[1753752920665,1.40647036,118290.0,118280.0,0.56838652]
[1753752921060,1.40647036,118290.0,118280.0,0.32601902]
[1753752921365,1.40647036,118290.0,118280.0,0.27686902]
[1753752923366,1.40647036,118290.0,118280.0,0.30621902]
[1753752924666,1.40647036,118290.0,118280.0,0.32601902]
[1753752925667,1.40647036,118290.0,118280.0,0.35591902]
[1753752926970,1.61893786,118290.0,118280.0,0.27386902]
[1753752927169,1.61893786,118290.0,118280.0,0.21278722]
[1753752928274,1.61893786,118290.0,118280.0,0.21078722]
[1753752930474,2.11893786,118290.0,118280.0,0.21078722]
[1753752931369,1.90647036,118290.0,118280.0,0.21078722]
[1753752937080,1.9263611,118290.0,118280.0,0.21078722]
[1753752940376,2.1388286,118290.0,118280.0,0.21078722]
[1753752940677,2.11893786,118290.0,118280.0,0.21078722]
[1753752943784,2.13883869,118290.0,118280.0,0.21078722]
[1753752943975,2.13883869,118290.0,118280.0,0.004]
[1753752944181,0.3285516,118280.0,118270.0,0.2536463]
[1753752944377,0.8734866,118280.0,118270.0,0.2536463]
[1753752944881,0.8819628,118280.0,118270.0,0.2536463]
[1753752945479,1.3819628,118280.0,118270.0,0.2536463]
[1753752946786,1.3819628,118280.0,118270.0,0.2596463]
[1753752949585,1.3819628,118280.0,118270.0,0.33529636]
[1753752951187,1.3819628,118280.0,118270.0,0.2596463]
[1753752951582,1.3819628,118280.0,118270.0,0.2173702]
[1753752951883,2.8819628,118280.0,118270.0,0.2173702]
[1753752952085,2.8819628,118280.0,118270.0,0.1750941]
[1753752952387,1.3819628,118280.0,118270.0,0.1750941]
[1753752955893,1.3819628,118280.0,118270.0,0.2730441]
[1753752956187,1.3819628,118280.0,118270.0,0.2440041]
[1753752964397,1.3819628,118280.0,118270.0,0.1954341]
[1753752964596,1.3819628,118280.0,118270.0,0.1750941]
[1753752967997,0.3285661,118270.0,118260.0,0.1691094]
[1753752968193,1.5405011,118270.0,118260.0,0.1691094]
[1753752969293,0.3285805,118260.0,118250.0,0.03986]
[1753752969502,0.8605155,118260.0,118250.0,0.28464486]
[1753752969796,0.8565155,118260.0,118250.0,0.28464486]